[Event "46th GRE-chT Premier 2018"]
[Site "Rio Achaia"]
[Date "2018.07.10"]
[Round "1"]
[White "Lagogianni, Niki Vasiliki"]
[Black "Mihailidou, Magdalini"]
[Result "0-1"]
[ECO "A05"]
[WhiteElo "1123"]
[BlackElo "1762"]
[Annotator "NA"]
[PlyCount "88"]
[EventDate "2018.07.10"]
[EventType "team-tourn"]
[EventCountry "GRE"]
[SourceTitle "playchess.com"]
[Source "ChessBase"]
[SourceQuality "1"]
[TimeControl "40/5400+30:1800+30"]

1. Nf3 {[%emt 0:00:00]} Nf6 {[%emt 0:00:00]} 2. g3 {[%emt 0:00:00]} g6 {[%emt 0:00:26]} 3. Bg2 {[%emt 0:00:17]} Bg7 {[%emt 0:00:15]} 4. O-O {[%emt 0:00:14]} O-O {[%emt 0:00:44]} 5. d3 {[%emt 0:00:14]} d6 {[%emt 0:00:29]} 6. Nbd2 {[%emt 0:00:37]} e5 {[%emt 0:01:00]} 7. e4 {[%emt 0:01:01]} c6 {[%emt 0:03:45]} 8. Qe1 {[%emt 0:02:37]} a5 {[%emt 0:09:10]} 9. Nc4 {[%emt 0:01:52]} b5 {[%emt 0:00:13]} 10. Ncd2 {[%emt 0:00:45]} Na6 {[%emt 0:01:23]} 11. a4 {[%emt 0:01:25]} Nd7 {[%emt 0:31:31]} 12. Nb3 {[%emt 0:02:04]} Nb4 {[%emt 0:01:07]} 13. Qe2 {[%emt 0:01:35]} Nb6 {[%emt 0:08:48]} 14. axb5 {[%emt 0:00:48]} a4 {[%emt 0:00:06]} 15. c3 {[%emt 0:01:00]} Nxd3 {[%emt 0:24:23]} 16. Qxd3 {[%emt 0:00:09]} axb3 {[%emt 0:00:11]} 17. Rxa8 {[%emt 0:00:21]} Nxa8 {[%emt 0:00:09]} 18. bxc6 {[%emt 0:00:07]} Qc7 {[%emt 0:10:29]} 19. Nd2 {[%emt 0:02:01]} Qxc6 {[%emt 0:00:40]} 20. c4 {[%emt 0:00:06]} Be6 {[%emt 0:00:39]} 21. Qxb3 {[%emt 0:00:35]} Nb6 {[%emt 0:02:19]} 22. Qb5 {[%emt 0:00:29]} Qxb5 {[%emt 0:00:27]} 23. cxb5 {[%emt 0:00:11]} Bd7 {[%emt 0:00:05]} 24. Rd1 {[%emt 0:02:17]} Bxb5 {[%emt 0:00:40]} 25. Nb3 {[%emt 0:00:29]} Ba4 {[%emt 0:00:48]} 26. Rd3 {[%emt 0:00:21]} Rc8 {[%emt 0:00:25]} 27. Rxd6 {[%emt 0:01:14]} Bxb3 {[%emt 0:00:06]} 28. Bg5 {[%emt 0:01:25]} Rb8 {[%emt 0:02:11]} 29. Bf1 {[%emt 0:02:00]} Na4 {[%emt 0:00:29]} 30. Bc1 {[%emt 0:01:11]} Rc8 {[%emt 0:00:52]} 31. Rb6 {[%emt 0:00:29]} Nxb6 {[%emt 0:00:05]} 32. Bd2 {[%emt 0:00:30]} Na4 {[%emt 0:00:14]} 33. Bc3 {[%emt 0:00:15]} Nxc3 {[%emt 0:00:05]} 34. bxc3 {[%emt 0:00:06]} Rxc3 {[%emt 0:00:03]} 35. Kg2 {[%emt 0:00:23]} Bc4 {[%emt 0:00:05]} 36. Bxc4 {[%emt 0:00:20]} Rxc4 {[%emt 0:00:02]} 37. f3 {[%emt 0:00:08]} Rc2+ {[%emt 0:00:07]} 38. Kh3 {[%emt 0:00:10]} h5 {[%emt 0:00:27]} 39. g4 {[%emt 0:00:24]} hxg4+ {[%emt 0:00:04]} 40. Kxg4 {[%emt 0:00:00]} Rxh2 {[%emt 0:00:00]} 41. Kg3 {[%emt 0:00:25]} Rb2 {[%emt 0:00:36]} 42. Kg4 {[%emt 0:00:06]} f5+ {[%emt 0:00:06]} 43. exf5 {[%emt 0:00:09]} gxf5+ {[%emt 0:00:04]} 44. Kxf5 {[%emt 0:00:14]} Rb4 {[%emt 0:00:38]} 0-1

[Event "46th GRE-chT Premier 2018"]
[Site "Rio Achaia"]
[Date "2018.07.10"]
[Round "1"]
[White "Apostolidis, Angelos"]
[Black "Loutragotis, Marios"]
[Result "0-1"]
[ECO "B90"]
[WhiteElo "1117"]
[BlackElo "1545"]
[Annotator "NA"]
[PlyCount "112"]
[EventDate "2018.07.10"]
[EventType "team-tourn"]
[EventCountry "GRE"]
[SourceTitle "playchess.com"]
[Source "ChessBase"]
[SourceQuality "1"]
[TimeControl "40/5400+30:1800+30"]

1. e4 {[%emt 0:00:00]} c5 {[%emt 0:00:00]} 2. Nf3 {[%emt 0:00:00]} d6 {[%emt 0:00:00]} 3. d4 {[%emt 0:00:31]} cxd4 {[%emt 0:00:22]} 4. Nxd4 {[%emt 0:00:41]} Nf6 {[%emt 0:00:20]} 5. Nc3 {[%emt 0:00:55]} a6 {[%emt 0:00:25]} 6. Bd3 {[%emt 0:05:04]} Nbd7 {[%emt 0:06:26]} 7. Nf3 {[%emt 0:01:01]} b5 {[%emt 0:05:51]} 8. a3 {[%emt 0:01:09]} Bb7 {[%emt 0:00:48]} 9. O-O {[%emt 0:01:37]} g6 {[%emt 0:04:16]} 10. Re1 {[%emt 0:00:44]} Bg7 {[%emt 0:01:44]} 11. Bf4 {[%emt 0:02:28]} Nh5 {[%emt 0:05:30]} 12. Bd2 {[%emt 0:03:09]} Nb6 {[%emt 0:27:56]} 13. Re2 {[%emt 0:13:03]} Rc8 {[%emt 0:02:18]} 14. Rb1 {[%emt 0:03:11]} Nc4 {[%emt 0:06:03]} 15. Qe1 {[%emt 0:04:12]} O-O {[%emt 0:06:50]} 16. Bxc4 {[%emt 0:09:21]} Rxc4 {[%emt 0:01:23]} 17. Re3 {[%emt 0:00:34]} Qd7 {[%emt 0:04:00]} 18. Qe2 {[%emt 0:12:46]} Nf4 {[%emt 0:02:58]} 19. Qe1 {[%emt 0:00:45]} Qg4 {[%emt 0:02:08]} 20. g3 {[%emt 0:01:55]} Ne6 {[%emt 0:04:05]} 21. b3 {[%emt 0:03:59]} Rcc8 {[%emt 0:01:27]} 22. b4 {[%emt 0:01:42]} Nd4 {[%emt 0:04:08]} 23. Qd1 {[%emt 0:06:28]} Nxf3+ {[%emt 0:01:35]} 24. Qxf3 {[%emt 0:00:48]} Qxf3 {[%emt 0:00:15]} 25. Rxf3 {[%emt 0:00:10]} Bxc3 {[%emt 0:00:24]} 26. Rxc3 {[%emt 0:01:10]} Rxc3 {[%emt 0:00:28]} 27. Bxc3 {[%emt 0:00:19]} Bxe4 {[%emt 0:00:15]} 28. Re1 {[%emt 0:00:44]} f5 {[%emt 0:00:35]} 29. Re3 {[%emt 0:01:24]} Rc8 {[%emt 0:01:24]} 30. f3 {[%emt 0:00:34]} Bxc2 {[%emt 0:00:13]} 31. Be1 {[%emt 0:01:03]} e5 {[%emt 0:01:55]} 32. Rc3 {[%emt 0:01:10]} Rxc3 {[%emt 0:03:22]} 33. Bxc3 {[%emt 0:00:02]} Kf7 {[%emt 0:00:05]} 34. Kf2 {[%emt 0:00:02]} Ke6 {[%emt 0:00:07]} 35. Ke3 {[%emt 0:00:09]} Kd5 {[%emt 0:01:40]} 36. Kd2 {[%emt 0:02:01]} Bb1 {[%emt 0:00:21]} 37. Kc1 Bd3 {[%emt 0:00:11]} 38. Kd2 {[%emt 0:02:45]} Kc4 {[%emt 0:01:26]} 39. Bb2 {[%emt 0:01:26]} Bb1 {[%emt 0:03:24]} 40. Ke3 {[%emt 0:00:00]} Kb3 {[%emt 0:00:00]} 41. Bc1 {[%emt 0:03:18]} d5 {[%emt 0:00:54]} 42. f4 {[%emt 0:00:27]} d4+ {[%emt 0:01:46]} 43. Kf3 {[%emt 0:02:30]} e4+ {[%emt 0:00:21]} 44. Ke2 {[%emt 0:00:15]} Kc2 {[%emt 0:01:25]} 45. Be3 {[%emt 0:02:51]} dxe3 {[%emt 0:00:25]} 46. Kxe3 {[%emt 0:00:29]} Kb3 {[%emt 0:00:06]} 47. Kd4 {[%emt 0:00:57]} Kxa3 {[%emt 0:00:09]} 48. Ke5 {[%emt 0:00:57]} e3 {[%emt 0:00:12]} 49. Kf6 {[%emt 0:00:14]} e2 {[%emt 0:00:08]} 50. Kg7 {[%emt 0:00:25]} e1=Q {[%emt 0:00:13]} 51. Kxh7 {[%emt 0:00:28]} Qd2 {[%emt 0:01:23]} 52. h4 {[%emt 0:00:39]} Qe3 {[%emt 0:01:29]} 53. Kxg6 {[%emt 0:01:06]} Qxg3+ {[%emt 0:00:06]} 54. Kh5 {[%emt 0:00:47]} Ba2 {[%emt 0:00:39]} 55. Kh6 {[%emt 0:01:16]} Qxf4+ {[%emt 0:01:51]} 56. Kh5 {[%emt 0:00:30]} Bf7# {[%emt 0:00:09]} 0-1

[Event "46th GRE-chT Premier 2018"]
[Site "Rio Achaia"]
[Date "2018.07.10"]
[Round "1"]
[White "Fertakis, Dimitrios"]
[Black "Trapalis, Theodoros"]
[Result "0-1"]
[ECO "C11"]
[WhiteElo "1058"]
[BlackElo "1386"]
[Annotator "NA"]
[PlyCount "186"]
[EventDate "2018.07.10"]
[EventType "team-tourn"]
[EventCountry "GRE"]
[SourceTitle "playchess.com"]
[Source "ChessBase"]
[SourceQuality "1"]
[TimeControl "40/5400+30:1800+30"]

1. e4 {[%emt 0:00:00]} e6 {[%emt 0:00:00]} 2. d4 {[%emt 0:00:00]} d5 {[%emt 0:00:00]} 3. Nc3 {[%emt 0:00:00]} Nf6 {[%emt 0:00:00]} 4. e5 {[%emt 0:00:35]} Nfd7 {[%emt 0:00:00]} 5. Nf3 {[%emt 0:00:38]} c5 {[%emt 0:00:22]} 6. Be3 {[%emt 0:00:52]} cxd4 {[%emt 0:06:27]} 7. Bxd4 {[%emt 0:07:44]} Nc6 {[%emt 0:00:42]} 8. Bb5 {[%emt 0:01:32]} Nxd4 {[%emt 0:06:05]} 9. Qxd4 {[%emt 0:03:16]} a6 {[%emt 0:03:33]} 10. Bxd7+ {[%emt 0:06:35]} Bxd7 {[%emt 0:00:12]} 11. O-O {[%emt 0:02:36]} Rc8 {[%emt 0:05:55]} 12. a3 {[%emt 0:07:54]} Bc5 {[%emt 0:05:51]} 13. Qd2 {[%emt 0:02:02]} b5 {[%emt 0:10:14]} 14. Ne2 {[%emt 0:05:05]} Qc7 {[%emt 0:07:43]} 15. Qg5 {[%emt 0:11:57]} O-O {[%emt 0:10:51]} 16. Nf4 {[%emt 0:02:58]} f6 {[%emt 0:13:55]} 17. exf6 {[%emt 0:13:40]} Rxf6 {[%emt 0:00:10]} 18. Nd3 {[%emt 0:02:27]} Bd6 {[%emt 0:04:19]} 19. Rac1 {[%emt 0:02:58]} Rcf8 {[%emt 0:04:07]} 20. Qe3 {[%emt 0:03:50]} Rh6 {[%emt 0:06:29]} 21. h3 {[%emt 0:03:30]} Rf5 {[%emt 0:04:21]} 22. Rfe1 {[%emt 0:03:58]} Rfh5 {[%emt 0:06:11]} 23. Nfe5 {[%emt 0:01:17]} Be8 {[%emt 0:01:29]} 24. Ng4 {[%emt 0:02:54]} Rg6 {[%emt 0:00:33]} 25. Nge5 {[%emt 0:02:33]} Bxe5 {[%emt 0:02:00]} 26. Nxe5 {[%emt 0:00:08]} Rf6 {[%emt 0:00:54]} 27. Nd3 {[%emt 0:01:03]} Bg6 {[%emt 0:00:32]} 28. Ne5 {[%emt 0:01:42]} Rhf5 {[%emt 0:00:31]} 29. Ng4 {[%emt 0:00:39]} Rf8 {[%emt 0:00:31]} 30. Qxe6+ {[%emt 0:00:25]} Kh8 {[%emt 0:00:20]} 31. Qe3 {[%emt 0:01:26]} Bh5 {[%emt 0:00:39]} 32. Rf1 {[%emt 0:05:04]} h6 {[%emt 0:00:30]} 33. Qd4 {[%emt 0:00:20]} Rf4 {[%emt 0:00:30]} 34. Qxd5 {[%emt 0:00:42]} Bxg4 {[%emt 0:00:18]} 35. hxg4 {[%emt 0:00:11]} Rxg4 {[%emt 0:00:07]} 36. Qh5 {[%emt 0:00:53]} Rg5 {[%emt 0:00:59]} 37. Qh2 {[%emt 0:00:36]} Qc5 {[%emt 0:00:35]} 38. Qh4 {[%emt 0:00:34]} Rh5 {[%emt 0:00:31]} 39. Qg3 {[%emt 0:00:30]} Rg5 {[%emt 0:00:24]} 40. Qe3 {[%emt 0:00:00]} Qc6 {[%emt 0:00:00]} 41. f3 {[%emt 0:02:47]} Qg6 {[%emt 0:04:45]} 42. Rf2 {[%emt 0:01:47]} h5 {[%emt 0:04:36]} 43. Qe4 {[%emt 0:01:24]} Rff5 {[%emt 0:03:49]} 44. c3 {[%emt 0:01:43]} Kh7 {[%emt 0:05:04]} 45. Re1 {[%emt 0:01:14]} Rg3 {[%emt 0:02:35]} 46. Qe6 {[%emt 0:01:27]} Rf6 {[%emt 0:02:36]} 47. Qe4 {[%emt 0:00:43]} Rf5 {[%emt 0:01:40]} 48. Rd1 {[%emt 0:01:06]} Rgg5 {[%emt 0:04:58]} 49. Rd3 {[%emt 0:02:53]} Rg3 {[%emt 0:02:51]} 50. Rd5 {[%emt 0:02:05]} Rxd5 {[%emt 0:02:27]} 51. Qxd5 {[%emt 0:00:14]} Qb1+ {[%emt 0:00:44]} 52. Kh2 {[%emt 0:00:14]} Rg6 {[%emt 0:00:31]} 53. Qd4 {[%emt 0:03:23]} Qc1 {[%emt 0:00:29]} 54. Qd2 {[%emt 0:00:37]} Qb1 {[%emt 0:00:31]} 55. Qc2 {[%emt 0:00:32]} Qe1 {[%emt 0:00:29]} 56. Qe2 {[%emt 0:00:31]} Qc1 {[%emt 0:00:27]} 57. Rf1 {[%emt 0:01:02]} Qf4+ {[%emt 0:00:30]} 58. Kg1 {[%emt 0:00:15]} h4 {[%emt 0:00:34]} 59. Rf2 {[%emt 0:02:55]} h3 {[%emt 0:00:29]} 60. Kh1 {[%emt 0:00:48]} hxg2+ {[%emt 0:00:31]} 61. Rxg2 {[%emt 0:00:22]} Qc1+ {[%emt 0:00:29]} 62. Kh2 {[%emt 0:00:31]} Rh6+ {[%emt 0:00:31]} 63. Kg3 {[%emt 0:00:18]} Qg5+ {[%emt 0:00:28]} 64. Kf2 {[%emt 0:00:15]} Qh4+ {[%emt 0:00:27]} 65. Kf1 {[%emt 0:00:37]} Qh1+ {[%emt 0:00:35]} 66. Rg1 {[%emt 0:00:12]} Qh3+ {[%emt 0:00:24]} 67. Qg2 {[%emt 0:00:09]} Qd7 {[%emt 0:00:34]} 68. Rh1 {[%emt 0:00:34]} Qd1+ {[%emt 0:00:06]} 69. Kf2 {[%emt 0:00:34]} Qxh1 {[%emt 0:00:06]} 70. Qg4 {[%emt 0:00:54]} Qh4+ {[%emt 0:00:17]} 71. Qxh4 {[%emt 0:00:32]} Rxh4 {[%emt 0:00:07]} 72. b3 {[%emt 0:00:06]} Kg6 {[%emt 0:00:13]} 73. Ke3 {[%emt 0:00:28]} Kf5 {[%emt 0:00:10]} 74. Ke2 {[%emt 0:00:54]} Kf4 {[%emt 0:01:18]} 75. c4 {[%emt 0:00:19]} bxc4 {[%emt 0:00:11]} 76. bxc4 {[%emt 0:00:06]} Ke5 {[%emt 0:00:10]} 77. c5 {[%emt 0:00:12]} Kd5 {[%emt 0:00:05]} 78. a4 {[%emt 0:00:08]} Rxa4 {[%emt 0:00:14]} 79. c6 {[%emt 0:00:09]} Kxc6 {[%emt 0:00:04]} 80. Ke3 {[%emt 0:00:07]} Rc4 {[%emt 0:00:10]} 81. f4 {[%emt 0:00:22]} a5 {[%emt 0:00:17]} 82. f5 {[%emt 0:00:10]} a4 {[%emt 0:00:11]} 83. Kd3 {[%emt 0:00:05]} Kb5 {[%emt 0:00:07]} 84. f6 {[%emt 0:00:22]} gxf6 {[%emt 0:00:06]} 85. Ke3 {[%emt 0:00:07]} a3 {[%emt 0:00:05]} 86. Kd3 {[%emt 0:00:10]} a2 {[%emt 0:00:05]} 87. Ke3 {[%emt 0:00:07]} a1=Q {[%emt 0:00:07]} 88. Kd3 {[%emt 0:00:05]} Qc3+ {[%emt 0:00:12]} 89. Ke2 {[%emt 0:00:07]} Qc2+ {[%emt 0:00:11]} 90. Ke3 {[%emt 0:00:07]} Re4+ {[%emt 0:00:06]} 91. Kf3 {[%emt 0:00:07]} Qe2+ {[%emt 0:00:04]} 92. Kg3 {[%emt 0:00:10]} Rg4+ {[%emt 0:00:06]} 93. Kh3 {[%emt 0:00:09]} Qg2# {[%emt 0:00:03]} 0-1

[Event "46th GRE-chT Premier 2018"]
[Site "Rio Achaia"]
[Date "2018.07.10"]
[Round "1"]
[White "Chasouraki, Chrysi"]
[Black "Georgitsi, Sofia"]
[Result "1-0"]
[ECO "C55"]
[WhiteElo "1026"]
[BlackElo "1420"]
[Annotator "NA"]
[PlyCount "95"]
[EventDate "2018.07.10"]
[EventType "team-tourn"]
[EventCountry "GRE"]
[SourceTitle "playchess.com"]
[Source "ChessBase"]
[SourceQuality "1"]
[TimeControl "40/5400+30:1800+30"]

1. e4 {[%emt 0:00:00]} e5 {[%emt 0:00:00]} 2. Nf3 {[%emt 0:00:00]} Nc6 {[%emt 0:00:04]} 3. Bc4 {[%emt 0:00:00]} Nf6 {[%emt 0:00:17]} 4. d3 {[%emt 0:01:09]} h6 {[%emt 0:00:35]} 5. O-O {[%emt 0:00:30]} d6 {[%emt 0:00:35]} 6. Re1 {[%emt 0:01:28]} g6 {[%emt 0:04:25]} 7. c3 {[%emt 0:01:32]} Bg7 {[%emt 0:01:07]} 8. d4 {[%emt 0:03:33]} Qe7 {[%emt 0:01:15]} 9. Bb5 {[%emt 0:13:07]} Bd7 {[%emt 0:00:45]} 10. d5 {[%emt 0:00:40]} Nb8 {[%emt 0:00:30]} 11. Bxd7+ {[%emt 0:03:30]} Nbxd7 {[%emt 0:00:16]} 12. c4 {[%emt 0:00:46]} O-O {[%emt 0:01:16]} 13. Nc3 {[%emt 0:00:33]} a5 {[%emt 0:09:23]} 14. h3 {[%emt 0:03:50]} Nc5 {[%emt 0:02:43]} 15. Qc2 {[%emt 0:03:38]} Kh7 {[%emt 0:13:15]} 16. Be3 {[%emt 0:06:40]} Nfd7 {[%emt 0:08:51]} 17. b3 {[%emt 0:24:14]} f5 {[%emt 0:25:01]} 18. Bc1 {[%emt 0:17:55]} f4 {[%emt 0:05:44]} 19. Bb2 {[%emt 0:01:52]} g5 {[%emt 0:03:08]} 20. a3 {[%emt 0:02:15]} h5 {[%emt 0:06:19]} 21. Nh2 {[%emt 0:02:46]} Nf6 {[%emt 0:03:22]} 22. f3 {[%emt 0:01:26]} Qd7 {[%emt 0:00:57]} 23. b4 {[%emt 0:01:40]} axb4 {[%emt 0:01:31]} 24. axb4 {[%emt 0:00:11]} Rxa1 {[%emt 0:01:30]} 25. Rxa1 {[%emt 0:00:08]} Na6 {[%emt 0:00:10]} 26. Ba3 {[%emt 0:00:47]} g4 {[%emt 0:01:39]} 27. fxg4 {[%emt 0:02:04]} hxg4 {[%emt 0:00:13]} 28. hxg4 {[%emt 0:00:24]} Nxg4 {[%emt 0:00:09]} 29. Qe2 {[%emt 0:01:11]} Nxh2 {[%emt 0:04:07]} 30. Kxh2 {[%emt 0:00:09]} Bh6 {[%emt 0:00:59]} 31. Qf3 {[%emt 0:00:47]} Rg8 {[%emt 0:00:54]} 32. Ne2 {[%emt 0:00:52]} Qe7 {[%emt 0:00:58]} 33. Rh1 {[%emt 0:00:55]} Qh4+ {[%emt 0:02:40]} 34. Kg1 {[%emt 0:01:11]} Qe1+ {[%emt 0:00:06]} 35. Kh2 {[%emt 0:00:15]} Qh4+ {[%emt 0:00:04]} 36. Kg1 {[%emt 0:00:09]} Qg4 {[%emt 0:02:07]} 37. Qxg4 {[%emt 0:00:44]} Rxg4 {[%emt 0:00:05]} 38. Kf2 {[%emt 0:00:25]} Kg6 {[%emt 0:00:49]} 39. Ra1 {[%emt 0:00:20]} Bg5 {[%emt 0:00:44]} 40. b5 {[%emt 0:00:00]} Nb8 {[%emt 0:00:00]} 41. Bb4 {[%emt 0:01:07]} Bh4+ {[%emt 0:03:13]} 42. Kf3 {[%emt 0:00:55]} Kh5 {[%emt 0:02:12]} 43. Ra7 {[%emt 0:00:30]} c5 {[%emt 0:06:51]} 44. bxc6 {[%emt 0:00:51]} bxc6 {[%emt 0:00:06]} 45. Rb7 {[%emt 0:00:11]} cxd5 {[%emt 0:04:50]} 46. cxd5 {[%emt 0:00:17]} Na6 {[%emt 0:01:53]} 47. Bxd6 {[%emt 0:00:49]} Bf6 {[%emt 0:01:07]} 48. Rb6 {[%emt 0:00:21]} 1-0